[Event "*** Titled Tuesday Blitz"]
[Site "Chess.com"]
[Date "2018.06.05"]
[Round "4"]
[White "Anurag328"]
[Black "BlueWizzard"]
[Result "1-0"]
[WhiteElo "2665"]
[BlackElo "2454"]
[TimeControl "180+2"]
[EndTime "13:56:34 PDT"]
[Termination "Anurag328 won by checkmate"]

1. Nf3 {[%clk 0:03:01.9]} 1... Na6 {[%clk 0:02:59.8]} 2. g3 {[%clk 0:03:03.2]}
2... g6 {[%clk 0:03:00.6]} 3. Bg2 {[%clk 0:03:05.1]} 3... Bg7 {[%clk 0:03:01.6]}
4. O-O {[%clk 0:03:07]} 4... d6 {[%clk 0:03:02.9]} 5. c4 {[%clk 0:03:08.5]} 5...
Nf6 {[%clk 0:03:03.5]} 6. Nc3 {[%clk 0:03:10.1]} 6... O-O {[%clk 0:03:05.1]} 7.
b3 {[%clk 0:03:11.8]} 7... c6 {[%clk 0:03:05.2]} 8. Bb2 {[%clk 0:03:13.4]} 8...
Nc7 {[%clk 0:03:05.6]} 9. a3 {[%clk 0:03:15]} 9... e5 {[%clk 0:03:06.5]} 10. b4
{[%clk 0:03:16.4]} 10... e4 {[%clk 0:03:06.9]} 11. Ng5 {[%clk 0:03:16.4]} 11...
d5 {[%clk 0:03:07.7]} 12. cxd5 {[%clk 0:03:18]} 12... cxd5 {[%clk 0:03:08.1]}
13. d3 {[%clk 0:03:18.7]} 13... h6 {[%clk 0:03:05.1]} 14. Nh3 {[%clk 0:03:19.9]}
14... e3 {[%clk 0:03:05.5]} 15. fxe3 {[%clk 0:03:20.8]} 15... Ng4 {[%clk
0:03:04.1]} 16. Qd2 {[%clk 0:03:19.4]} 16... d4 {[%clk 0:03:01.3]} 17. exd4
{[%clk 0:03:12.1]} 17... Bxd4+ {[%clk 0:02:55.9]} 18. Kh1 {[%clk 0:03:13]} 18...
Ne3 {[%clk 0:02:57.3]} 19. Rf4 {[%clk 0:02:59.3]} 19... Nxg2 {[%clk 0:02:37]}
20. Rxd4 {[%clk 0:03:00.3]} 20... Qxd4 {[%clk 0:01:55.2]} 21. Ne4 {[%clk
0:03:01.2]} 21... Qxe4 {[%clk 0:00:26.4]} 22. dxe4 {[%clk 0:03:00.6]} 22... Kh7
{[%clk 0:00:18.9]} 23. Kxg2 {[%clk 0:02:54.4]} 23... Bxh3+ {[%clk 0:00:18.7]}
24. Kxh3 {[%clk 0:02:55.4]} 24... Ne6 {[%clk 0:00:20.6]} 25. Rf1 {[%clk
0:02:48.8]} 25... Rad8 {[%clk 0:00:20.6]} 26. Qc3 {[%clk 0:02:50.3]} 26... Rd7
{[%clk 0:00:19.4]} 27. Kg2 {[%clk 0:02:45.9]} 27... Rg8 {[%clk 0:00:20.8]} 28.
Qe5 {[%clk 0:02:35.7]} 28... Nd8 {[%clk 0:00:17.1]} 29. h4 {[%clk 0:02:28.1]}
29... h5 {[%clk 0:00:17.4]} 30. Rf3 {[%clk 0:02:28.1]} 30... Nc6 {[%clk
0:00:18.7]} 31. Qd5 {[%clk 0:02:29.4]} 31... Rxd5 {[%clk 0:00:19.5]} 32. Rxf7+
{[%clk 0:02:31]} 32... Kh6 {[%clk 0:00:20.3]} 33. exd5 {[%clk 0:02:27.8]} 33...
Nb8 {[%clk 0:00:21.5]} 34. Rxb7 {[%clk 0:02:18.6]} 34... g5 {[%clk 0:00:20.3]}
35. Be5 {[%clk 0:02:16]} 35... Na6 {[%clk 0:00:19.9]} 36. Rxa7 {[%clk
0:02:16.7]} 36... gxh4 {[%clk 0:00:21.2]} 37. Rxa6+ {[%clk 0:02:17.5]} 37... Kg5
{[%clk 0:00:22.6]} 38. Bf6+ {[%clk 0:02:09.8]} 38... Kg4 {[%clk 0:00:23]} 39.
Bxh4 {[%clk 0:02:11.4]} 39... Re8 {[%clk 0:00:21.4]} 40. Rg6+ {[%clk 0:02:12.5]}
40... Kf5 {[%clk 0:00:22]} 41. Rf6+ {[%clk 0:02:14]} 41... Ke5 {[%clk
0:00:21.7]} 42. Re6+ {[%clk 0:02:15.4]} 42... Rxe6 {[%clk 0:00:22.4]} 43. dxe6
{[%clk 0:02:17.3]} 43... Kxe6 {[%clk 0:00:24.1]} 44. Kf3 {[%clk 0:02:19]} 44...
Kf5 {[%clk 0:00:25.1]} 45. e4+ {[%clk 0:02:20.9]} 45... Ke5 {[%clk 0:00:26.2]}
46. Ke3 {[%clk 0:02:22.8]} 46... Kd6 {[%clk 0:00:27.2]} 47. Kd4 {[%clk
0:02:24.7]} 47... Kc6 {[%clk 0:00:28.5]} 48. a4 {[%clk 0:02:26.2]} 48... Kb6
{[%clk 0:00:29.3]} 49. e5 {[%clk 0:02:27.6]} 49... Kc6 {[%clk 0:00:30.5]} 50.
b5+ {[%clk 0:02:28.7]} 50... Kd7 {[%clk 0:00:32.4]} 51. Kc5 {[%clk 0:02:30]}
51... Ke6 {[%clk 0:00:33.9]} 52. Kd4 {[%clk 0:02:31.3]} 52... Kf5 {[%clk
0:00:34.9]} 53. a5 {[%clk 0:02:32.7]} 53... Kg4 {[%clk 0:00:36.8]} 54. a6 {[%clk
0:02:34.1]} 54... Kh3 {[%clk 0:00:38.7]} 55. a7 {[%clk 0:02:35.3]} 55... Kg2
{[%clk 0:00:40.6]} 56. Ke3 {[%clk 0:02:36.4]} 56... Kf1 {[%clk 0:00:42.5]} 57.
Kd2 {[%clk 0:02:37.5]} 57... Kf2 {[%clk 0:00:43.6]} 58. a8=Q {[%clk 0:02:37.3]}
58... Kf1 {[%clk 0:00:44.2]} 59. Qh1+ {[%clk 0:02:33.3]} 59... Kf2 {[%clk
0:00:44.7]} 60. g4# {[%clk 0:02:34.8]} 1-0

[Event "*** Titled Tuesday Blitz"]
[Site "Chess.com"]
[Date "2018.06.05"]
[Round "4"]
[White "Bryakin_Mikhail"]
[Black "jacky72"]
[Result "0-1"]
[WhiteElo "2643"]
[BlackElo "2644"]
[TimeControl "180+2"]
[EndTime "13:56:37 PDT"]
[Termination "jacky72 won by resignation"]

1. d4 {[%clk 0:03:01.6]} 1... Nf6 {[%clk 0:03:00.5]} 2. c4 {[%clk 0:03:03]} 2...
g6 {[%clk 0:03:01.7]} 3. Nc3 {[%clk 0:03:03.9]} 3... Bg7 {[%clk 0:03:03.2]} 4.
Nf3 {[%clk 0:03:04.7]} 4... d6 {[%clk 0:03:04.1]} 5. Bf4 {[%clk 0:03:05.7]} 5...
O-O {[%clk 0:03:04.6]} 6. e3 {[%clk 0:03:07.1]} 6... b6 {[%clk 0:03:05.8]} 7. h3
{[%clk 0:03:07.5]} 7... Bb7 {[%clk 0:03:07.7]} 8. Be2 {[%clk 0:03:08.8]} 8...
Ne4 {[%clk 0:03:08.7]} 9. Nxe4 {[%clk 0:03:03.7]} 9... Bxe4 {[%clk 0:03:09.8]}
10. O-O {[%clk 0:03:03.7]} 10... Nd7 {[%clk 0:03:10.4]} 11. Rc1 {[%clk
0:03:03.6]} 11... e5 {[%clk 0:03:10.6]} 12. dxe5 {[%clk 0:02:55.3]} 12... dxe5
{[%clk 0:03:10.6]} 13. Bh2 {[%clk 0:02:56.5]} 13... Qe7 {[%clk 0:03:10.5]} 14.
Qa4 {[%clk 0:02:50.7]} 14... Nc5 {[%clk 0:03:08.7]} 15. Qa3 {[%clk 0:02:51.3]}
15... a5 {[%clk 0:03:07.4]} 16. Rfd1 {[%clk 0:02:47]} 16... Rfd8 {[%clk
0:03:07.8]} 17. Ne1 {[%clk 0:02:35.4]} 17... Rxd1 {[%clk 0:03:05.5]} 18. Rxd1
{[%clk 0:02:31.4]} 18... Rd8 {[%clk 0:03:07.4]} 19. Rxd8+ {[%clk 0:02:22]} 19...
Qxd8 {[%clk 0:03:08.5]} 20. Qc3 {[%clk 0:02:23.9]} 20... Bc6 {[%clk 0:03:00.5]}
21. Bxe5 {[%clk 0:01:44.2]} 21... Na4 {[%clk 0:02:59.5]} 22. Qd4 {[%clk
0:01:45.5]} 22... Qxd4 {[%clk 0:02:59.8]} 23. Bxd4 {[%clk 0:01:46.3]} 23... Nxb2
{[%clk 0:02:57]} 24. Bxg7 {[%clk 0:01:43.4]} 24... Kxg7 {[%clk 0:02:57.9]} 25.
Nc2 {[%clk 0:01:40.8]} 25... Be4 {[%clk 0:02:51.9]} 26. Nd4 {[%clk 0:01:41.4]}
26... Bb1 {[%clk 0:02:52.8]} 27. a3 {[%clk 0:01:27.6]} 27... Ba2 {[%clk
0:02:53.9]} 28. c5 {[%clk 0:01:21.2]} 28... bxc5 {[%clk 0:02:54.8]} 29. Nb5
{[%clk 0:01:22.7]} 29... Bc4 {[%clk 0:02:47]} 30. Bxc4 {[%clk 0:01:18.1]} 30...
Nxc4 {[%clk 0:02:48.9]} 31. a4 {[%clk 0:01:16.7]} 31... Nb2 {[%clk 0:02:44.3]}
32. Nc3 {[%clk 0:01:17.6]} 32... Kf6 {[%clk 0:02:44.3]} 33. Kf1 {[%clk
0:01:19.1]} 33... Ke5 {[%clk 0:02:45.2]} 34. Ke2 {[%clk 0:01:20.6]} 34... c4
{[%clk 0:02:41]} 35. Kd2 {[%clk 0:01:07.4]} 35... c6 {[%clk 0:02:42.3]} 36. f4+
{[%clk 0:00:54.1]} 36... Ke6 {[%clk 0:02:40.7]} 37. g4 {[%clk 0:00:37]} 37... f5
{[%clk 0:02:37.7]} 38. e4 {[%clk 0:00:36.6]} 38... fxe4 {[%clk 0:02:37.8]} 39.
Nxe4 {[%clk 0:00:38.5]} 39... Nxa4 {[%clk 0:02:37.4]} 40. Ng5+ {[%clk
0:00:39.9]} 40... Kd5 {[%clk 0:02:37.7]} 41. Nxh7 {[%clk 0:00:41.2]} 41... Ke4
{[%clk 0:02:39.2]} 42. f5 {[%clk 0:00:36.6]} 42... gxf5 {[%clk 0:02:41.1]} 43.
g5 {[%clk 0:00:35.7]} 43... Nc5 {[%clk 0:02:37.1]} 44. g6 {[%clk 0:00:36.9]}
44... Ne6 {[%clk 0:02:29.9]} 45. Ng5+ {[%clk 0:00:37]} 45... Kd5 {[%clk
0:02:30.8]} 46. h4 {[%clk 0:00:29]} 46... Nxg5 {[%clk 0:02:27]} 47. g7 {[%clk
0:00:17.3]} 47... Ne4+ {[%clk 0:02:27.5]} 48. Kc1 {[%clk 0:00:18.5]} 48... Nf6
{[%clk 0:02:29.4]} 49. h5 {[%clk 0:00:19.2]} 49... Ng8 {[%clk 0:02:31.3]} 0-1

[Event "*** Titled Tuesday Blitz"]
[Site "Chess.com"]
[Date "2018.06.05"]
[Round "4"]
[White "PaulfromSPb"]
[Black "bugsbunny444"]
[Result "1-0"]
[WhiteElo "2430"]
[BlackElo "2326"]
[TimeControl "180+2"]
[EndTime "13:56:38 PDT"]
[Termination "PaulfromSPb won on time"]

1. e4 {[%clk 0:03:01.9]} 1... c5 {[%clk 0:02:54.3]} 2. Ne2 {[%clk 0:02:51.7]}
2... e6 {[%clk 0:02:54.6]} 3. g3 {[%clk 0:02:49]} 3... b6 {[%clk 0:02:36.4]} 4.
Bg2 {[%clk 0:02:43.3]} 4... Bb7 {[%clk 0:02:37.7]} 5. O-O {[%clk 0:02:44.1]}
5... d6 {[%clk 0:02:29]} 6. c3 {[%clk 0:02:44.5]} 6... Nf6 {[%clk 0:02:16]} 7.
f3 {[%clk 0:02:44.4]} 7... Nbd7 {[%clk 0:01:50.9]} 8. d4 {[%clk 0:02:37.4]} 8...
Be7 {[%clk 0:01:46.5]} 9. Be3 {[%clk 0:02:35.1]} 9... O-O {[%clk 0:01:45.7]} 10.
Nd2 {[%clk 0:02:35.6]} 10... Rc8 {[%clk 0:01:40.6]} 11. h3 {[%clk 0:02:34.1]}
11... e5 {[%clk 0:01:21.4]} 12. g4 {[%clk 0:02:31.3]} 12... d5 {[%clk
0:01:18.3]} 13. dxe5 {[%clk 0:02:24.2]} 13... Nxe5 {[%clk 0:01:18]} 14. f4
{[%clk 0:02:25.3]} 14... Nc4 {[%clk 0:00:39.7]} 15. Nxc4 {[%clk 0:02:13.1]}
15... dxc4 {[%clk 0:00:41.6]} 16. Ng3 {[%clk 0:02:11.8]} 16... Qd3 {[%clk
0:00:41.6]} 17. Qf3 {[%clk 0:02:10]} 17... Rcd8 {[%clk 0:00:26.1]} 18. g5 {[%clk
0:02:08.3]} 18... Nd7 {[%clk 0:00:09.4]} 19. Nf5 {[%clk 0:02:08.8]} 19... Rfe8
{[%clk 0:00:09.3]} 20. Rfd1 {[%clk 0:02:09.7]} 20... Qc2 {[%clk 0:00:10]} 21.
Rd2 {[%clk 0:02:10.3]} 21... Qa4 {[%clk 0:00:10.6]} 22. Rad1 {[%clk 0:02:10.8]}
22... Bc8 {[%clk 0:00:06.5]} 23. Nxe7+ {[%clk 0:01:58.2]} 23... Rxe7 {[%clk
0:00:07.4]} 24. f5 {[%clk 0:01:59.6]} 24... Rde8 {[%clk 0:00:07.4]} 25. f6
{[%clk 0:02:00.1]} 25... Rxe4 {[%clk 0:00:08.2]} 26. Qxe4 {[%clk 0:01:58.3]}
26... Rxe4 {[%clk 0:00:09.2]} 27. Bxe4 {[%clk 0:01:59.4]} 27... gxf6 {[%clk
0:00:07.3]} 28. gxf6 {[%clk 0:01:55.9]} 28... Nxf6 {[%clk 0:00:08]} 29. Bh6
{[%clk 0:01:54.6]} 29... Bd7 {[%clk 0:00:03.2]} 30. Rg2+ {[%clk 0:01:53.4]}
30... Kh8 {[%clk 0:00:04]} 31. Bg7+ {[%clk 0:01:54.5]} 31... Kg8 {[%clk
0:00:05.2]} 32. Bxf6+ {[%clk 0:01:55.5]} 32... Kf8 {[%clk 0:00:06.4]} 33. Bxh7
{[%clk 0:01:55.8]} 33... Qxd1+ {[%clk 0:00:06.8]} 34. Kf2 {[%clk 0:01:54.5]}
34... Qd2+ {[%clk 0:00:04.4]} 35. Kg1 {[%clk 0:01:42.8]} 35... Qd1+ {[%clk
0:00:03.4]} 36. Kf2 {[%clk 0:01:42.3]} 36... Qd2+ {[%clk 0:00:04.4]} 37. Kf3
{[%clk 0:01:41.7]} 1-0

[Event "*** Titled Tuesday Blitz"]
[Site "Chess.com"]
[Date "2018.06.05"]
[Round "4"]
[White "BlackBoarder"]
[Black "Eliwood44"]
[Result "1/2-1/2"]
[WhiteElo "2264"]
[BlackElo "2178"]
[TimeControl "180+2"]
[EndTime "13:56:50 PDT"]
[Termination "Game drawn - insufficient material"]

1. e4 {[%clk 0:02:56.8]} 1... e5 {[%clk 0:02:58.9]} 2. Nf3 {[%clk 0:02:47.6]}
2... Nc6 {[%clk 0:02:58]} 3. d4 {[%clk 0:02:48.8]} 3... exd4 {[%clk 0:02:58.7]}
4. Bc4 {[%clk 0:02:49.9]} 4... Nf6 {[%clk 0:03:00]} 5. O-O {[%clk 0:02:51]} 5...
Nxe4 {[%clk 0:03:00.6]} 6. Re1 {[%clk 0:02:51.9]} 6... d5 {[%clk 0:03:02]} 7.
Bxd5 {[%clk 0:02:53.2]} 7... Qxd5 {[%clk 0:03:03.9]} 8. Nc3 {[%clk 0:02:54.5]}
8... Qa5 {[%clk 0:03:04.8]} 9. Nxe4 {[%clk 0:02:55.6]} 9... Be6 {[%clk
0:03:06.1]} 10. Neg5 {[%clk 0:02:56.9]} 10... O-O-O {[%clk 0:03:06.6]} 11. Nxe6
{[%clk 0:02:54.6]} 11... fxe6 {[%clk 0:03:08.5]} 12. Rxe6 {[%clk 0:02:55.2]}
12... h6 {[%clk 0:03:09.8]} 13. Qe2 {[%clk 0:02:37.3]} 13... g5 {[%clk
0:02:59.3]} 14. Ne5 {[%clk 0:02:23.7]} 14... Nxe5 {[%clk 0:02:54.1]} 15. Qxe5
{[%clk 0:02:07.2]} 15... Qxe5 {[%clk 0:02:53.2]} 16. Rxe5 {[%clk 0:02:07.5]}
16... Bd6 {[%clk 0:02:54.7]} 17. Re4 {[%clk 0:02:00.4]} 17... Rhe8 {[%clk
0:02:54.5]} 18. Rxe8 {[%clk 0:02:01.3]} 18... Rxe8 {[%clk 0:02:56.4]} 19. Kf1
{[%clk 0:02:02.7]} 19... c5 {[%clk 0:02:45.4]} 20. h4 {[%clk 0:01:57.7]} 20...
Re5 {[%clk 0:02:33]} 21. Bd2 {[%clk 0:01:44.4]} 21... Kd7 {[%clk 0:02:26.5]} 22.
f3 {[%clk 0:01:26.9]} 22... gxh4 {[%clk 0:02:03.4]} 23. Bxh6 {[%clk 0:01:19.6]}
23... h3 {[%clk 0:02:04.3]} 24. Bf4 {[%clk 0:01:04]} 24... Rf5 {[%clk
0:02:04.4]} 25. Bxd6 {[%clk 0:01:03.9]} 25... Kxd6 {[%clk 0:02:05.5]} 26. Kf2
{[%clk 0:00:55.2]} 26... hxg2 {[%clk 0:02:06.1]} 27. Kxg2 {[%clk 0:00:56.4]}
27... b5 {[%clk 0:02:04.5]} 28. Rh1 {[%clk 0:00:56.6]} 28... a5 {[%clk
0:02:04.9]} 29. Kg3 {[%clk 0:00:52.9]} 29... Rf6 {[%clk 0:02:05.2]} 30. f4
{[%clk 0:00:53.5]} 30... Kd5 {[%clk 0:02:05.9]} 31. Kf3 {[%clk 0:00:50.4]} 31...
a4 {[%clk 0:02:05.7]} 32. Rh5+ {[%clk 0:00:50.6]} 32... Kc4 {[%clk 0:02:06.5]}
33. f5 {[%clk 0:00:47.9]} 33... a3 {[%clk 0:02:06.4]} 34. bxa3 {[%clk
0:00:41.7]} 34... Kc3 {[%clk 0:02:03.1]} 35. Ke4 {[%clk 0:00:39.6]} 35... Kxc2
{[%clk 0:02:02.8]} 36. Rh2+ {[%clk 0:00:28.8]} 36... Kc3 {[%clk 0:02:01.3]} 37.
Rh3+ {[%clk 0:00:29.8]} 37... Kb2 {[%clk 0:02:01.1]} 38. Ke5 {[%clk 0:00:26.1]}
38... Rf8 {[%clk 0:02:01.9]} 39. f6 {[%clk 0:00:21.4]} 39... Kxa2 {[%clk
0:02:01]} 40. Kd5 {[%clk 0:00:09.9]} 40... Rxf6 {[%clk 0:01:59.5]} 41. Kxc5
{[%clk 0:00:11.1]} 41... Ra6 {[%clk 0:01:53.2]} 42. Kxb5 {[%clk 0:00:07.8]}
42... Rxa3 {[%clk 0:01:52.5]} 43. Rxa3+ {[%clk 0:00:08.5]} 43... Kxa3 {[%clk
0:01:54.4]} 44. Kc4 {[%clk 0:00:09.7]} 44... d3 {[%clk 0:01:56.3]} 45. Kxd3
{[%clk 0:00:11]} 1/2-1/2

[Event "*** Titled Tuesday Blitz"]
[Site "Chess.com"]
[Date "2018.06.05"]
[Round "4"]
[White "ShimanovAlex"]
[Black "W_Amadeus"]
[Result "1-0"]
[WhiteElo "2719"]
[BlackElo "2516"]
[TimeControl "180+2"]
[EndTime "13:57:06 PDT"]
[Termination "ShimanovAlex won by resignation"]

1. d4 {[%clk 0:03:01.9]} 1... d5 {[%clk 0:02:59.2]} 2. Bf4 {[%clk 0:03:03.1]}
2... Nf6 {[%clk 0:02:59.5]} 3. e3 {[%clk 0:03:04.1]} 3... c5 {[%clk 0:02:55.6]}
4. Nd2 {[%clk 0:03:03.1]} 4... Nc6 {[%clk 0:02:54.4]} 5. c3 {[%clk 0:03:03.4]}
5... Bg4 {[%clk 0:02:47.9]} 6. Ngf3 {[%clk 0:03:04.3]} 6... cxd4 {[%clk
0:02:47.4]} 7. exd4 {[%clk 0:03:05]} 7... e6 {[%clk 0:02:48.5]} 8. Qb3 {[%clk
0:03:05.9]} 8... Qc8 {[%clk 0:02:48.9]} 9. Ne5 {[%clk 0:03:04.9]} 9... Bh5
{[%clk 0:02:49.3]} 10. Bb5 {[%clk 0:03:01.8]} 10... Nd7 {[%clk 0:02:40.4]} 11.
O-O {[%clk 0:02:55.3]} 11... Be7 {[%clk 0:02:33.6]} 12. c4 {[%clk 0:02:39.2]}
12... Nxd4 {[%clk 0:01:19]} 13. Bxd7+ {[%clk 0:02:03.7]} 13... Qxd7 {[%clk
0:01:19.6]} 14. Qe3 {[%clk 0:02:05.1]} 14... Ne2+ {[%clk 0:01:20]} 15. Kh1
{[%clk 0:02:05.8]} 15... Qd8 {[%clk 0:01:14.5]} 16. cxd5 {[%clk 0:01:58.7]}
16... Qxd5 {[%clk 0:00:51.2]} 17. Bg5 {[%clk 0:01:18.1]} 17... Bc5 {[%clk
0:00:34]} 18. Qh3 {[%clk 0:01:12.3]} 18... Qxe5 {[%clk 0:00:23.8]} 19. Qxh5
{[%clk 0:01:13.1]} 19... h6 {[%clk 0:00:10.9]} 20. f4 {[%clk 0:01:02.1]} 20...
Qd5 {[%clk 0:00:09.9]} 21. Rad1 {[%clk 0:00:47.9]} 21... Kf8 {[%clk 0:00:06.2]}
22. Qxe2 {[%clk 0:00:45.1]} 22... hxg5 {[%clk 0:00:06.7]} 23. Ne4 {[%clk
0:00:43.8]} 23... Qf5 {[%clk 0:00:04.7]} 24. fxg5 {[%clk 0:00:43.1]} 24... Qe5
{[%clk 0:00:05.8]} 25. g3 {[%clk 0:00:42.6]} 25... Kg8 {[%clk 0:00:06.2]} 26.
Rd7 {[%clk 0:00:41.9]} 26... Rf8 {[%clk 0:00:06.3]} 27. Qg4 {[%clk 0:00:38.7]}
27... Bb6 {[%clk 0:00:06.3]} 28. Nf6+ {[%clk 0:00:37.1]} 28... gxf6 {[%clk
0:00:04.7]} 29. gxf6+ {[%clk 0:00:38.2]} 1-0

[Event "*** Titled Tuesday Blitz"]
[Site "Chess.com"]
[Date "2018.06.05"]
[Round "4"]
[White "LornerAcosta"]
[Black "FairChess_on_YouTube"]
[Result "0-1"]
[WhiteElo "2312"]
[BlackElo "2963"]
[TimeControl "180+2"]
[EndTime "13:57:17 PDT"]
[Termination "FairChess_on_YouTube won on time"]

1. d4 {[%clk 0:03:01.9]} 1... d5 {[%clk 0:03:00]} 2. Nf3 {[%clk 0:03:01.5]} 2...
Nf6 {[%clk 0:02:59]} 3. e3 {[%clk 0:03:00.2]} 3... Bf5 {[%clk 0:02:56.8]} 4. Bd3
{[%clk 0:02:59.3]} 4... e6 {[%clk 0:02:56.9]} 5. Bxf5 {[%clk 0:02:59.6]} 5...
exf5 {[%clk 0:02:57.7]} 6. Qd3 {[%clk 0:03:01.1]} 6... Qc8 {[%clk 0:02:51.7]} 7.
c4 {[%clk 0:02:58.3]} 7... dxc4 {[%clk 0:02:49.7]} 8. Qxc4 {[%clk 0:02:58.4]}
8... Bd6 {[%clk 0:02:51.2]} 9. O-O {[%clk 0:02:57]} 9... O-O {[%clk 0:02:51.8]}
10. b4 {[%clk 0:02:49]} 10... Nbd7 {[%clk 0:02:50]} 11. Bb2 {[%clk 0:02:47.1]}
11... Nb6 {[%clk 0:02:49.1]} 12. Qb3 {[%clk 0:02:48.1]} 12... f4 {[%clk
0:02:47.1]} 13. Nc3 {[%clk 0:02:41.2]} 13... Re8 {[%clk 0:02:27.9]} 14. Rae1
{[%clk 0:02:39.4]} 14... fxe3 {[%clk 0:02:23.8]} 15. fxe3 {[%clk 0:02:41.3]}
15... Qe6 {[%clk 0:02:23.7]} 16. Qxe6 {[%clk 0:02:30.1]} 16... Rxe6 {[%clk
0:02:24.2]} 17. a3 {[%clk 0:02:25.8]} 17... Nc4 {[%clk 0:02:23.7]} 18. Bc1
{[%clk 0:02:26.6]} 18... Rae8 {[%clk 0:02:17.5]} 19. Ng5 {[%clk 0:02:08.5]}
19... R6e7 {[%clk 0:02:18.1]} 20. e4 {[%clk 0:02:00.1]} 20... h6 {[%clk
0:02:18.5]} 21. Rxf6 {[%clk 0:01:44.6]} 21... gxf6 {[%clk 0:02:20.4]} 22. Nf3
{[%clk 0:01:44.5]} 22... c6 {[%clk 0:02:21.3]} 23. Kf2 {[%clk 0:01:44.6]} 23...
Kh7 {[%clk 0:02:16.5]} 24. h3 {[%clk 0:01:39.8]} 24... Bc7 {[%clk 0:02:15.4]}
25. Nh4 {[%clk 0:01:35.5]} 25... Rd7 {[%clk 0:02:03.3]} 26. Nf5 {[%clk
0:01:27.9]} 26... Bb6 {[%clk 0:02:04.1]} 27. Rd1 {[%clk 0:01:27.7]} 27... Nd6
{[%clk 0:02:04.8]} 28. Nxd6 {[%clk 0:01:26.8]} 28... Rxd6 {[%clk 0:02:05.5]} 29.
Be3 {[%clk 0:01:28.3]} 29... a5 {[%clk 0:01:36.5]} 30. b5 {[%clk 0:00:58.9]}
30... Red8 {[%clk 0:01:35.9]} 31. bxc6 {[%clk 0:00:55.9]} 31... bxc6 {[%clk
0:01:28.3]} 32. d5 {[%clk 0:00:36.7]} 32... Bxe3+ {[%clk 0:01:06.2]} 33. Kxe3
{[%clk 0:00:37.4]} 33... Kg7 {[%clk 0:01:02.6]} 34. Kd4 {[%clk 0:00:36.9]} 34...
f5 {[%clk 0:01:02.1]} 35. Kc5 {[%clk 0:00:03]} 35... fxe4 {[%clk 0:01:01.2]} 0-1

[Event "*** Titled Tuesday Blitz"]
[Site "Chess.com"]
[Date "2018.06.05"]
[Round "4"]
[White "Ar4uha"]
[Black "Beca95"]
[Result "0-1"]
[WhiteElo "2584"]
[BlackElo "2779"]
[TimeControl "180+2"]
[EndTime "13:57:17 PDT"]
[Termination "Beca95 won by resignation"]

1. e4 {[%clk 0:03:01.9]} 1... c6 {[%clk 0:03:01.1]} 2. d4 {[%clk 0:03:02.3]}
2... d5 {[%clk 0:03:02.8]} 3. Nc3 {[%clk 0:03:04.2]} 3... dxe4 {[%clk
0:03:03.7]} 4. Nxe4 {[%clk 0:03:06.1]} 4... Nf6 {[%clk 0:03:04.8]} 5. Nxf6+
{[%clk 0:03:07.2]} 5... exf6 {[%clk 0:03:06.7]} 6. c3 {[%clk 0:03:07]} 6... Bd6
{[%clk 0:03:08]} 7. Bd3 {[%clk 0:03:08.6]} 7... O-O {[%clk 0:03:09.5]} 8. Qc2
{[%clk 0:03:10.5]} 8... Re8+ {[%clk 0:03:10.3]} 9. Ne2 {[%clk 0:03:11.9]} 9...
h5 {[%clk 0:03:11.7]} 10. O-O {[%clk 0:03:13.5]} 10... Nd7 {[%clk 0:03:12.8]}
11. Bf4 {[%clk 0:03:12.2]} 11... Rxe2 {[%clk 0:03:10.4]} 12. Qxe2 {[%clk
0:03:12.6]} 12... Bxf4 {[%clk 0:03:11.3]} 13. Qxh5 {[%clk 0:03:13.5]} 13... Nf8
{[%clk 0:03:11.7]} 14. Rfe1 {[%clk 0:03:13.4]} 14... g6 {[%clk 0:03:12.7]} 15.
Qf3 {[%clk 0:03:13.4]} 15... Bh6 {[%clk 0:03:12.5]} 16. Re2 {[%clk 0:03:11.2]}
16... Be6 {[%clk 0:03:13.3]} 17. Rae1 {[%clk 0:03:09.7]} 17... Kg7 {[%clk
0:03:12.9]} 18. b3 {[%clk 0:03:08.9]} 18... Qd7 {[%clk 0:03:13]} 19. h3 {[%clk
0:03:05.8]} 19... Rd8 {[%clk 0:03:13.8]} 20. Bc4 {[%clk 0:03:01.9]} 20... b5
{[%clk 0:03:08.8]} 21. Bxe6 {[%clk 0:02:50.7]} 21... Nxe6 {[%clk 0:03:10.7]} 22.
h4 {[%clk 0:02:47]} 22... b4 {[%clk 0:03:10.3]} 23. h5 {[%clk 0:02:44.1]} 23...
bxc3 {[%clk 0:03:10.9]} 24. Qxc3 {[%clk 0:02:46]} 24... Qxd4 {[%clk 0:02:47.3]}
25. Qxc6 {[%clk 0:02:42.4]} 25... Rd6 {[%clk 0:02:47.7]} 26. Qb7 {[%clk
0:02:35.5]} 26... Rd7 {[%clk 0:02:48.6]} 27. Qb5 {[%clk 0:02:25]} 27... Qd5
{[%clk 0:01:07.7]} 28. Qxd5 {[%clk 0:02:24.9]} 28... Rxd5 {[%clk 0:01:09.6]} 29.
hxg6 {[%clk 0:02:26.7]} 29... Kxg6 {[%clk 0:01:09.8]} 30. g3 {[%clk 0:02:26.2]}
30... f5 {[%clk 0:01:11.1]} 31. Kg2 {[%clk 0:02:27]} 31... Bg7 {[%clk
0:01:12.5]} 32. Rc2 {[%clk 0:02:20.7]} 32... Bf6 {[%clk 0:01:13.5]} 33. Rc6
{[%clk 0:02:18]} 33... a5 {[%clk 0:01:14.5]} 34. Rec1 {[%clk 0:02:08.1]} 34...
Bd4 {[%clk 0:01:13.1]} 35. a3 {[%clk 0:02:02.7]} 35... Bb2 {[%clk 0:01:12.6]}
36. R1c4 {[%clk 0:01:39.1]} 36... Bxa3 {[%clk 0:01:12.8]} 37. g4 {[%clk
0:01:40.5]} 37... Bb4 {[%clk 0:01:12.9]} 38. gxf5+ {[%clk 0:01:40.6]} 38... Kxf5
{[%clk 0:01:13.2]} 39. Rh4 {[%clk 0:01:35.1]} 39... Nf4+ {[%clk 0:01:12.4]} 40.
Kh2 {[%clk 0:01:33.1]} 40... Bd6 {[%clk 0:01:09.6]} 41. Kg3 {[%clk 0:01:14.6]}
41... Be5 {[%clk 0:00:53.3]} 42. Rhh6 {[%clk 0:01:01.4]} 42... f6 {[%clk
0:00:53.2]} 43. Rb6 {[%clk 0:00:47.8]} 43... Rd3+ {[%clk 0:00:53.2]} 44. Kh2
{[%clk 0:00:42.8]} 44... Nd5+ {[%clk 0:00:54.1]} 0-1